bitfinex-derivatives/quotes_BTCF0:USTF0_20250602
["timestamp","ask_amount","ask_price","bid_price","bid_amount"]
[1748908234909,0.28515125,105930.0,105920.0,1.54744408]
[1748908235801,0.28515125,105930.0,105920.0,1.54754134]
[1748908236109,0.28515125,105930.0,105920.0,1.66485767]
[1748908239106,0.28515125,105930.0,105920.0,1.79573183]
[1748908239507,0.28515125,105930.0,105920.0,1.79609746]
[1748908240213,0.28515125,105930.0,105920.0,1.79571436]
[1748908240512,0.28515125,105930.0,105920.0,1.34587436]
[1748908240812,0.28515125,105930.0,105920.0,1.79567436]
[1748908241013,0.28515125,105930.0,105920.0,1.87328279]
[1748908241206,0.28515125,105930.0,105920.0,1.78048279]
[1748908241912,0.28515125,105930.0,105920.0,1.3118898]
[1748908242107,0.41479999,105930.0,105920.0,1.23096021]
[1748908242506,0.41479999,105930.0,105920.0,1.40771272]
[1748908243004,0.41479999,105930.0,105920.0,1.40772703]
[1748908243205,0.41479999,105930.0,105920.0,1.39056378]
[1748908244104,0.41479999,105930.0,105920.0,1.33686972]
[1748908244304,0.41479999,105930.0,105920.0,1.30761655]
[1748908244612,0.41479999,105930.0,105920.0,1.42493288]
[1748908244916,0.41479999,105930.0,105920.0,1.30761655]
[1748908244917,0.28515125,105930.0,105920.0,1.30761655]
[1748908246112,0.28515125,105930.0,105920.0,1.34081655]
[1748908247114,0.28515125,105930.0,105920.0,1.37341655]
[1748908247811,0.28515125,105930.0,105920.0,0.92365655]
[1748908248009,0.28515125,105930.0,105920.0,1.1972401]
[1748908248514,0.28515125,105930.0,105920.0,1.1646401]
[1748908250808,0.41479999,105930.0,105920.0,0.6050401]
[1748908251008,0.41479999,105930.0,105920.0,1.1646401]
[1748908252920,0.41479999,105930.0,105920.0,1.13774557]
[1748908253120,0.41479999,105930.0,105920.0,1.32647297]
[1748908253712,0.41479999,105930.0,105920.0,0.65712557]
[1748908253908,0.41479999,105930.0,105920.0,1.10680557]
[1748908254114,0.41479999,105930.0,105920.0,1.02296994]
[1748908254314,0.41479999,105930.0,105920.0,1.11878804]
[1748908254514,0.41479999,105930.0,105920.0,1.02294311]
[1748908254814,0.41479999,105930.0,105920.0,1.11876121]
[1748908256014,0.41479999,105930.0,105920.0,1.02294311]
[1748908256220,0.41479999,105930.0,105920.0,1.11876121]
[1748908256428,0.41479999,105930.0,105920.0,1.02294311]
[1748908256725,0.41479999,105930.0,105920.0,1.11876121]
[1748908257713,0.28515125,105930.0,105920.0,1.11876121]
[1748908257917,0.41479999,105930.0,105920.0,1.11876121]
[1748908258313,0.41479999,105930.0,105920.0,1.11876259]
[1748908260024,0.41479999,105930.0,105920.0,1.17236559]
[1748908261016,0.77559999,105930.0,105920.0,1.17236559]
[1748908261219,0.41479999,105930.0,105920.0,1.17237065]
[1748908262321,0.41479999,105930.0,105920.0,1.36109805]
[1748908262526,0.41479999,105930.0,105920.0,1.20407065]
[1748908262831,0.41479999,105930.0,105920.0,1.15046587]
[1748908263022,0.28515125,105930.0,105920.0,1.37149327]
[1748908263330,0.4147575,105930.0,105920.0,1.42509832]
[1748908263518,0.4147575,105930.0,105920.0,1.18276587]
[1748908264224,0.4147575,105930.0,105920.0,1.15106587]
[1748908264525,0.4147575,105930.0,105920.0,1.33979327]
[1748908264720,0.4147575,105930.0,105920.0,1.33978528]
[1748908264926,0.4145575,105930.0,105920.0,1.33978528]
[1748908265126,0.4145575,105930.0,105920.0,1.37118528]
[1748908266121,0.4145575,105930.0,105920.0,1.27536718]
[1748908266622,0.4147575,105930.0,105920.0,1.53189153]
[1748908267827,0.4147575,105930.0,105920.0,1.89269153]
[1748908268126,0.4147575,105930.0,105920.0,1.53189153]
[1748908268525,0.4147575,105930.0,105920.0,1.53187646]
[1748908269332,0.28515125,105930.0,105920.0,1.40227021]
[1748908270630,0.28515125,105930.0,105920.0,1.76307021]
[1748908270828,0.28515125,105930.0,105920.0,1.40227021]
[1748908271036,0.28515125,105930.0,105920.0,1.76307021]
[1748908271229,0.28515125,105930.0,105920.0,1.79232338]
[1748908272433,0.28515125,105930.0,105920.0,1.43153226]
[1748908273226,0.28515125,105930.0,105920.0,1.59291595]
[1748908273432,0.28515125,105930.0,105920.0,1.49709785]
[1748908273934,0.28515125,105930.0,105920.0,1.38930486]
[1748908274431,0.28515125,105930.0,105920.0,1.49709785]
[1748908274834,0.28515125,105930.0,105920.0,1.49685785]
[1748908275033,0.28515125,105930.0,105920.0,1.58479179]
[1748908275233,0.28515125,105930.0,105920.0,1.58479252]
[1748908275831,0.28515125,105930.0,105920.0,1.49685785]
[1748908276035,0.28515125,105930.0,105920.0,1.58478932]
[1748908276238,0.28515125,105930.0,105920.0,1.58475264]
[1748908276834,0.28515125,105930.0,105920.0,1.47695965]
[1748908277034,0.28515125,105930.0,105920.0,1.38977404]
[1748908277629,0.28515125,105930.0,105920.0,1.25902841]
[1748908279138,0.28515125,105930.0,105920.0,1.07030101]
[1748908279334,0.28515125,105930.0,105920.0,1.25902841]
[1748908280838,0.64595125,105930.0,105920.0,1.25902841]
[1748908281034,0.77554866,105930.0,105920.0,0.52606101]
[1748908281235,0.90514607,105930.0,105920.0,0.71540588]
[1748908281440,0.97407497,105930.0,105920.0,1.06684315]
[1748908281739,0.97407497,105930.0,105920.0,1.01089961]
[1748908282437,0.97407497,105930.0,105920.0,1.00889961]
[1748908283242,0.98407497,105930.0,105920.0,1.00689961]
[1748908283537,0.99407497,105930.0,105920.0,1.00685961]
[1748908283732,0.99407497,105930.0,105920.0,0.94824713]
[1748908284131,1.08848297,105930.0,105920.0,0.45880233]
[1748908284333,1.10848297,105930.0,105920.0,0.59757423]
[1748908284629,1.13848297,105930.0,105920.0,0.08139863]
[1748908284828,1.13848297,105930.0,105910.0,0.35726316]
[1748908284829,0.1887274,105920.0,105910.0,0.18623569]
[1748908285040,0.78242481,105920.0,105910.0,0.49523426]
[1748908285339,0.79242481,105920.0,105910.0,0.49523426]
[1748908285842,0.79242481,105920.0,105910.0,0.49326178]
[1748908286241,0.79242481,105920.0,105910.0,0.49426178]
[1748908286430,0.80242481,105920.0,105910.0,0.49426178]
[1748908287136,1.02242481,105920.0,105910.0,0.49426178]
[1748908287338,0.80242481,105920.0,105910.0,0.49426178]
[1748908288245,0.86684081,105920.0,105910.0,0.49426178]
[1748908288446,0.88684081,105920.0,105910.0,0.49426178]
[1748908288844,0.88684081,105920.0,105910.0,0.50426178]
[1748908289042,0.88684081,105920.0,105910.0,0.53716178]
[1748908289243,0.52604081,105920.0,105910.0,0.57036178]
[1748908289546,0.43182481,105920.0,105910.0,0.70101824]
[1748908289849,0.43182481,105920.0,105910.0,0.69101824]
[1748908290044,0.43182481,105920.0,105910.0,0.64707646]
[1748908290249,0.79262481,105920.0,105910.0,0.64707646]
[1748908290750,0.2822274,105920.0,105910.0,0.90582166]
[1748908291147,0.2820274,105920.0,105910.0,0.93742166]
[1748908291345,0.2820274,105920.0,105910.0,0.93741341]
[1748908291551,0.1887274,105920.0,105910.0,1.57716261]
[1748908291758,0.1889274,105920.0,105910.0,1.6822843]
[1748908292055,0.1887274,105920.0,105910.0,1.81292905]
[1748908292251,0.1889274,105920.0,105910.0,1.72924762]
[1748908293252,0.1889274,105920.0,105910.0,1.73124762]
[1748908293457,0.1889274,105920.0,105910.0,1.82690581]
[1748908293852,0.1889274,105920.0,105910.0,1.82790581]
[1748908294763,0.1889274,105920.0,105910.0,1.81578368]
[1748908294961,0.1889274,105920.0,105910.0,1.82003322]
[1748908295258,0.1889274,105920.0,105910.0,1.82001705]
[1748908295455,0.1889274,105920.0,105910.0,1.81801705]
[1748908295655,0.1889274,105920.0,105910.0,1.82001705]
[1748908295959,0.1889274,105920.0,105910.0,1.69041964]
[1748908297454,0.1889274,105920.0,105910.0,1.82001705]
[1748908298661,0.1887274,105920.0,105910.0,1.94945551]
[1748908298961,0.1889274,105920.0,105910.0,1.86152404]
[1748908299155,0.1889274,105920.0,105910.0,1.86152434]
[1748908301465,0.02123284,105930.0,105920.0,0.1887274]
[1748908301766,0.30430344,105930.0,105920.0,1.18024481]
[1748908301965,0.30450344,105930.0,105920.0,1.18024481]
[1748908302161,0.30430344,105930.0,105920.0,1.26798359]
[1748908302662,0.30430344,105930.0,105920.0,1.39845209]
[1748908302663,0.30450344,105930.0,105920.0,1.39845209]
[1748908302968,0.30450344,105930.0,105920.0,1.39945151]
[1748908303469,0.30450344,105930.0,105920.0,1.39845151]
[1748908303767,0.30450344,105930.0,105920.0,1.40045151]
[1748908303768,0.30430344,105930.0,105920.0,1.40045151]
[1748908303968,0.30450344,105930.0,105920.0,1.40045151]
[1748908304768,0.30450344,105930.0,105920.0,1.40245151]
[1748908304967,0.30450344,105930.0,105920.0,1.55155165]
[1748908305264,0.30450344,105930.0,105920.0,1.46801581]
[1748908307170,0.30450344,105930.0,105920.0,1.7874984]
[1748908307364,0.30450344,105930.0,105920.0,1.28497645]
[1748908307566,0.33540344,105930.0,105920.0,1.73405645]
[1748908307766,0.36820344,105930.0,105920.0,1.17545645]
[1748908307962,0.36820344,105930.0,105920.0,1.73405645]
[1748908307963,0.39950344,105930.0,105920.0,1.73405645]
[1748908310364,0.39950344,105930.0,105920.0,1.73407029]
[1748908311265,0.39950344,105930.0,105920.0,1.73831983]
[1748908311465,0.39950344,105930.0,105920.0,1.79177486]
[1748908312365,0.39950344,105930.0,105920.0,1.73831983]
[1748908312666,0.39950344,105930.0,105920.0,1.79177373]
[1748908312870,0.39950344,105930.0,105920.0,1.82287373]
[1748908313271,0.39950344,105930.0,105920.0,1.75729576]
[1748908313476,0.39950344,105930.0,105920.0,1.75729975]
[1748908313774,0.39950344,105930.0,105920.0,1.39649975]
[1748908314076,0.39950344,105930.0,105920.0,1.31296164]
[1748908314368,0.39950344,105930.0,105920.0,1.3129664]
[1748908314564,0.39950344,105930.0,105920.0,1.6737664]
[1748908315171,0.39950344,105930.0,105920.0,1.73227263]
[1748908315563,0.39950344,105930.0,105920.0,1.37147263]
[1748908317976,0.39950344,105930.0,105920.0,1.45506986]
[1748908318166,0.39950344,105930.0,105920.0,1.45509991]
[1748908318671,0.39950344,105930.0,105920.0,1.75739368]
[1748908319078,0.39950344,105930.0,105920.0,1.81595279]
[1748908319577,0.39950344,105930.0,105920.0,1.75746412]
[1748908320271,0.39950344,105930.0,105920.0,0.91743672]
[1748908320473,0.39950344,105930.0,105920.0,1.17291572]
[1748908320673,0.39950344,105930.0,105920.0,0.72403572]
[1748908320868,0.39950344,105930.0,105920.0,1.17291572]
[1748908321075,0.39950344,105930.0,105920.0,0.61471572]
[1748908321270,1.11390626,105930.0,105920.0,0.47599931]
[1748908321470,0.98430885,105930.0,105920.0,0.89573467]
[1748908321680,0.94882975,105930.0,105920.0,0.895757]
[1748908321882,0.94882975,105930.0,105920.0,0.76504368]
[1748908322184,0.88990085,105930.0,105920.0,0.84871611]
[1748908322384,0.94882975,105930.0,105920.0,0.70644954]
[1748908324275,0.95882975,105930.0,105920.0,0.70644954]
[1748908324576,0.82923234,105930.0,105920.0,0.70644954]
[1748908324779,0.89990085,105930.0,105920.0,0.67812954]
[1748908325473,0.89990085,105930.0,105920.0,0.68237908]
[1748908327378,0.90017509,105930.0,105920.0,0.68237908]
[1748908327981,0.91017509,105930.0,105920.0,0.68237908]
[1748908330777,0.91017509,105930.0,105920.0,0.59304954]
[1748908330981,0.89080966,105930.0,105920.0,0.59304954]
[1748908331580,0.76121225,105930.0,105920.0,0.59304954]
[1748908332084,0.89080966,105930.0,105920.0,0.59304954]
[1748908332284,0.89080966,105930.0,105920.0,0.67672197]
[1748908332585,0.89080966,105930.0,105920.0,0.64840197]
[1748908332880,0.89080966,105930.0,105920.0,0.53672197]
[1748908333678,0.89080966,105930.0,105920.0,0.08792197]
[1748908333879,0.89080966,105930.0,105920.0,0.00424954]
[1748908334078,0.89080966,105930.0,105920.0,0.42468954]
[1748908334387,0.94973856,105930.0,105920.0,0.39636954]
[1748908334579,0.94973856,105930.0,105920.0,0.40061908]
[1748908334784,0.94953856,105930.0,105920.0,0.40061908]
[1748908335187,0.94953856,105930.0,105920.0,0.00424954]
[1748908335484,0.94953856,105930.0,105920.0,0.42468954]
[1748908335679,0.94953856,105930.0,105920.0,0.42893908]
[1748908335878,0.94953856,105930.0,105920.0,0.40061908]
[1748908336278,0.89060966,105930.0,105920.0,0.40061908]
[1748908336489,0.40021225,105930.0,105920.0,0.40061908]
[1748908336686,0.31631225,105930.0,105920.0,0.81794062]
[1748908336990,0.31631225,105930.0,105920.0,1.07264062]
[1748908337179,0.34781225,105930.0,105920.0,1.07264062]
[1748908337379,0.34801225,105930.0,105920.0,1.07264062]
[1748908338387,0.34801225,105930.0,105920.0,1.20330262]
[1748908339680,0.37991225,105930.0,105920.0,1.20331575]
[1748908342090,0.37991225,105930.0,105920.0,1.01458835]
[1748908342389,0.37991225,105930.0,105920.0,1.20331575]
[1748908342982,0.37991225,105930.0,105920.0,1.21526895]
[1748908343289,0.37991225,105930.0,105920.0,1.02654155]
[1748908343594,0.50950966,105930.0,105920.0,1.07885747]
[1748908343891,0.37991225,105930.0,105920.0,1.17195914]
[1748908344291,0.37991225,105930.0,105920.0,1.25560462]
[1748908344782,0.37991225,105930.0,105920.0,1.29953912]
[1748908344979,0.37991225,105930.0,105920.0,1.11081182]
[1748908345591,0.37991225,105930.0,105920.0,1.29953912]
[1748908345794,0.50950966,105930.0,105920.0,1.29953912]
[1748908346091,0.50950966,105930.0,105920.0,1.10658539]
[1748908346681,0.50950966,105930.0,105920.0,0.65790539]
[1748908346881,0.91030966,105930.0,105920.0,0.23745493]
[1748908347189,0.91030966,105930.0,105920.0,0.13185045]
[1748908347390,0.91030966,105930.0,105920.0,0.04820761]
[1748908348693,0.96921879,105930.0,105920.0,0.11160761]
[1748908348893,0.96921879,105930.0,105920.0,0.24232547]
[1748908349193,0.96921879,105930.0,105920.0,0.69092547]
[1748908349795,0.96921879,105930.0,105920.0,0.69093321]
[1748908350295,0.96921879,105930.0,105920.0,0.17893321]
[1748908350691,1.0574558,105930.0,105920.0,0.17893321]
[1748908351189,1.0574558,105930.0,105920.0,0.58363057]
[1748908351391,0.96921879,105930.0,105920.0,0.58363057]
[1748908352598,0.96921879,105930.0,105920.0,0.62761715]
[1748908352901,0.96921879,105930.0,105920.0,0.49679612]
[1748908353097,0.93901879,105930.0,105920.0,0.17823612]
[1748908353293,0.93921879,105930.0,105920.0,0.27143612]
[1748908354306,0.80962138,105930.0,105920.0,0.27143612]
[1748908354493,0.93921879,105930.0,105920.0,0.27143612]
[1748908354804,0.71512138,105930.0,105920.0,0.67016342]
[1748908355002,0.72141225,105930.0,105920.0,0.6701725]
[1748908355191,0.72141225,105930.0,105920.0,0.4814452]
[1748908355192,0.85080966,105930.0,105920.0,0.4814452]
[1748908355400,0.75391225,105930.0,105920.0,0.4814452]
[1748908355698,0.88370966,105930.0,105920.0,0.4814452]
[1748908356105,0.88370966,105930.0,105920.0,0.4531252]
[1748908356996,0.88370966,105930.0,105920.0,0.45737474]
[1748908357197,0.52290966,105930.0,105920.0,0.45737474]
[1748908357911,0.88370966,105930.0,105920.0,0.3882452]
[1748908358099,0.94265482,105930.0,105920.0,0.8367252]
[1748908358399,0.81305741,105930.0,105920.0,0.8367252]
[1748908358603,0.94245482,105930.0,105920.0,0.8671252]
[1748908358903,0.94245482,105930.0,105920.0,0.89864144]
[1748908358904,0.94265482,105930.0,105920.0,0.89864144]
[1748908359304,0.94265482,105930.0,105920.0,0.92874144]
[1748908360511,0.94265482,105930.0,105920.0,0.9287428]
[1748908360902,0.94265482,105930.0,105920.0,0.8367428]
[1748908362001,0.94265482,105930.0,105920.0,0.3882628]
[1748908362204,0.94265482,105930.0,105920.0,0.8367428]
[1748908362503,0.94265482,105930.0,105920.0,0.46268954]
[1748908362703,1.03089183,105930.0,105920.0,0.5067126]
[1748908363406,1.33089183,105930.0,105920.0,0.5067126]
[1748908363606,1.04089183,105930.0,105920.0,0.5067126]
[1748908364002,1.04089183,105930.0,105920.0,0.59046306]
[1748908364404,1.28089183,105930.0,105920.0,0.5067126]
[1748908364609,1.04089183,105930.0,105920.0,0.5067126]
[1748908366207,0.95265482,105930.0,105920.0,0.49264214]
[1748908366409,0.96265482,105930.0,105920.0,0.45268954]
[1748908367305,1.05089183,105930.0,105920.0,0.45268954]
[1748908368316,1.05089183,105930.0,105920.0,0.00424954]
[1748908368613,0.96265482,105930.0,105920.0,0.45264954]
[1748908368919,1.10225223,105930.0,105920.0,0.00424954]
[1748908369116,1.15048924,105930.0,105920.0,0.00424954]
[1748908369317,0.2830962,105920.0,105910.0,0.08375046]
[1748908369521,1.07051447,105920.0,105910.0,0.19543046]
[1748908369811,1.07051447,105920.0,105910.0,0.14]
[1748908370012,1.15875148,105920.0,105910.0,0.14]
[1748908371716,1.43875148,105920.0,105910.0,0.14]
[1748908371911,1.13875148,105920.0,105910.0,0.14]
[1748908372311,1.10875148,105920.0,105910.0,0.14]
[1748908372516,1.12875148,105920.0,105910.0,0.14]
[1748908373017,1.10875148,105920.0,105910.0,0.14]
[1748908373220,1.12875148,105920.0,105910.0,0.14]
[1748908374919,1.13875148,105920.0,105910.0,0.14]
[1748908375420,1.39875148,105920.0,105910.0,0.14]
[1748908375625,1.13875148,105920.0,105910.0,0.14]
[1748908376321,1.00915407,105920.0,105910.0,0.14]
[1748908376623,0.4081676,105920.0,105910.0,0.31]
[1748908376826,0.4385676,105920.0,105910.0,0.4055]
[1748908377021,0.4385676,105920.0,105910.0,0.46419434]
[1748908377617,0.4385676,105920.0,105910.0,0.4055]
[1748908378219,0.4385676,105920.0,105910.0,0.46419434]
[1748908379332,0.56816501,105920.0,105910.0,0.46419434]
[1748908379826,0.56816501,105920.0,105910.0,0.4055]
[1748908380435,0.56816501,105920.0,105910.0,0.45187711]
[1748908380818,0.56816501,105920.0,105910.0,0.51057145]
[1748908381021,0.56816501,105920.0,105910.0,0.51058354]
[1748908381832,0.4385676,105920.0,105910.0,0.51058354]
[1748908382132,0.4385676,105920.0,105910.0,0.52815236]
[1748908382634,0.4689676,105920.0,105910.0,0.52815236]
[1748908383233,0.4689676,105920.0,105910.0,0.52817242]
[1748908383435,0.59856501,105920.0,105910.0,0.52817242]
[1748908384431,0.59856501,105920.0,105910.0,0.53242196]
[1748908384627,0.95936501,105920.0,105910.0,1.06457619]
[1748908384825,0.95936501,105920.0,105910.0,0.95947259]
[1748908385133,0.95936501,105920.0,105910.0,1.00590001]
[1748908385431,0.95936501,105920.0,105910.0,0.87559836]
[1748908386029,0.95936501,105920.0,105910.0,0.98455836]
[1748908387129,0.95936501,105920.0,105910.0,0.53631836]
[1748908387333,0.95936501,105920.0,105910.0,0.98455836]
[1748908388333,0.95936501,105920.0,105910.0,1.0432527]
[1748908392234,0.8297676,105920.0,105910.0,1.0432527]
[1748908392534,0.95936501,105920.0,105910.0,1.0432527]
[1748908394436,1.01831447,105920.0,105910.0,0.3905127]
[1748908394627,1.02831447,105920.0,105910.0,0.61897836]
[1748908394830,1.02831447,105920.0,105910.0,0.57897836]
[1748908395028,1.10655148,105920.0,105910.0,0.78897836]
[1748908395235,1.01811447,105920.0,105910.0,0.82077836]
[1748908395534,1.01831447,105920.0,105910.0,0.82077836]
[1748908396032,0.88871706,105920.0,105910.0,0.82077836]
[1748908396227,1.01831447,105920.0,105910.0,0.82077836]
[1748908397732,1.02831447,105920.0,105910.0,0.85147836]
[1748908398535,1.11655148,105920.0,105910.0,0.85147836]
[1748908399035,1.02831447,105920.0,105910.0,0.85147836]
[1748908399232,1.11655148,105920.0,105910.0,0.85147836]
[1748908399630,1.11655148,105920.0,105910.0,0.82966]
[1748908399939,1.11655148,105920.0,105910.0,0.79483836]
[1748908400841,1.02831447,105920.0,105910.0,0.7990879]
[1748908403445,0.89871706,105920.0,105910.0,0.7990879]
[1748908403640,0.88851706,105920.0,105910.0,1.04652734]
[1748908403840,0.88871706,105920.0,105910.0,0.88888224]
[1748908404041,1.01831447,105920.0,105910.0,0.88888224]
[1748908405248,1.01833933,105920.0,105910.0,0.88888224]
[1748908406442,0.65753933,105920.0,105910.0,0.88888224]
[1748908406642,1.01833933,105920.0,105910.0,0.82708224]
[1748908406844,1.1479616,105920.0,105910.0,0.82708224]
[1748908407245,1.0183515,105920.0,105910.0,0.82708224]
[1748908407848,0.6575515,105920.0,105910.0,0.82708224]
[1748908408047,0.52791706,105920.0,105910.0,0.82708224]
[1748908408239,0.52791706,105920.0,105910.0,1.25398224]
[1748908408240,0.59860204,105920.0,105910.0,1.25398224]
[1748908408434,0.4689676,105920.0,105910.0,1.53092033]
[1748908408640,0.4687676,105920.0,105910.0,1.53092033]
[1748908408946,0.4689676,105920.0,105910.0,1.17012033]
[1748908409150,0.4689676,105920.0,105910.0,0.98137523]
[1748908409450,0.59860204,105920.0,105910.0,1.08192734]
[1748908409645,0.4689676,105920.0,105910.0,1.08192734]
[1748908409852,0.4689676,105920.0,105910.0,1.02528734]
[1748908410050,0.59860204,105920.0,105910.0,0.83654224]
[1748908411656,0.59860204,105920.0,105910.0,1.02528734]
[1748908411859,0.59860204,105920.0,105910.0,0.83654224]
[1748908414059,0.59860204,105920.0,105910.0,0.92473523]
[1748908415559,0.4689676,105920.0,105910.0,0.92473523]
[1748908415759,0.59860204,105920.0,105910.0,0.92473523]
[1748908417757,0.59860204,105920.0,105910.0,1.00860946]
[1748908418257,0.59860204,105920.0,105910.0,1.07237102]
[1748908418470,0.95940204,105920.0,105910.0,0.98417803]
[1748908418859,0.95940204,105920.0,105910.0,0.98417912]
[1748908420060,0.95940204,105920.0,105910.0,1.03633912]
[1748908420659,0.95940204,105920.0,105910.0,1.03661275]
[1748908421266,0.59860204,105920.0,105910.0,1.03661275]
[1748908421463,0.59860204,105920.0,105910.0,1.12480574]
[1748908422165,0.95940204,105920.0,105910.0,1.03661275]
[1748908422659,0.95940204,105920.0,105910.0,1.03661331]
[1748908425556,0.95940204,105920.0,105910.0,1.1248063]
[1748908426166,0.95940204,105920.0,105910.0,1.16893121]
[1748908426371,0.95940204,105920.0,105910.0,1.1248063]
[1748908426566,0.95940204,105920.0,105910.0,1.12480905]
[1748908426862,0.95940204,105920.0,105910.0,1.08492471]
[1748908427567,0.95940204,105920.0,105910.0,1.04079818]
[1748908427868,0.8297676,105920.0,105910.0,1.04079818]
[1748908428168,0.95940204,105920.0,105910.0,1.04079818]
[1748908429162,1.14802958,105920.0,105910.0,1.02156264]
[1748908429668,1.15802958,105920.0,105910.0,0.89103567]
[1748908429863,1.15802958,105920.0,105910.0,0.83439567]
[1748908430266,0.8987144,105920.0,105910.0,0.83439567]
[1748908430469,1.15802958,105920.0,105910.0,0.87853178]
[1748908430664,1.15802958,105920.0,105910.0,0.87849178]
[1748908430965,1.15802958,105920.0,105910.0,0.834361]
[1748908432273,1.15802958,105920.0,105910.0,0.83436215]
[1748908432474,1.15802958,105920.0,105910.0,0.79022489]
[1748908432870,1.15802958,105920.0,105910.0,0.83436591]
[1748908433074,1.15802958,105920.0,105910.0,0.81710161]
[1748908433375,1.15802958,105920.0,105910.0,0.77296059]
[1748908434270,1.15802958,105920.0,105910.0,0.81710692]
[1748908434570,1.29768717,105920.0,105910.0,0.81706692]
[1748908434762,1.16802958,105920.0,105910.0,0.21644059]
[1748908434967,1.16802958,105920.0,105910.0,0.34698897]
[1748908435167,1.18700031,105920.0,105910.0,0.90346897]
[1748908435367,1.18700031,105920.0,105910.0,0.34698897]
[1748908435673,1.27523732,105920.0,105910.0,0.94761462]
[1748908435977,1.27523732,105920.0,105910.0,0.81706624]
[1748908437266,1.18700031,105920.0,105910.0,0.26058624]
[1748908437580,1.18700031,105920.0,105910.0,0.81706624]
[1748908437768,1.16802958,105920.0,105910.0,0.81706624]
[1748908438273,1.16802958,105920.0,105910.0,0.81706312]
[1748908438575,1.1870757,105920.0,105910.0,0.81706312]
[1748908438765,1.16802958,105920.0,105910.0,0.81706312]
[1748908438968,1.18716302,105920.0,105910.0,0.81702312]
[1748908439568,1.18716302,105920.0,105910.0,0.66366312]
[1748908439769,1.18696302,105920.0,105910.0,0.66366312]
[1748908439969,1.18696302,105920.0,105910.0,0.60702312]
[1748908440170,1.18696302,105920.0,105910.0,0.61127266]
[1748908440576,1.54776302,105920.0,105910.0,0.61127266]
[1748908440773,1.54776302,105920.0,105910.0,0.05483266]
[1748908440978,1.63600003,105920.0,105910.0,0.56068954]
[1748908441173,1.88565762,105920.0,105910.0,0.14291667]
[1748908441378,0.1887629,105900.0,105890.0,0.11731633]
[1748908441579,0.81887808,105900.0,105890.0,0.23899633]
[1748908441875,0.97024918,105900.0,105890.0,0.15]
[1748908442785,0.98919979,105900.0,105890.0,0.15]
[1748908443281,0.99893997,105900.0,105890.0,0.15]
[1748908444584,1.07358295,105900.0,105890.0,0.15]
[1748908444783,1.43438295,105900.0,105890.0,0.15]
[1748908445486,1.43428891,105900.0,105890.0,0.15]
[1748908445873,1.45428891,105900.0,105890.0,0.15]
[1748908446077,1.62428891,105900.0,105890.0,0.15]
[1748908449077,1.60543234,105900.0,105890.0,0.15]
[1748908449283,1.62430384,105900.0,105890.0,0.15]
[1748908449483,0.54525884,105890.0,105880.0,0.54421947]
[1748908449684,1.14266383,105890.0,105880.0,0.77421947]
[1748908450481,1.14266383,105890.0,105880.0,0.32661947]
[1748908450691,1.14266383,105890.0,105860.0,0.3608]
[1748908450692,0.1888164,105870.0,105860.0,0.3608]
[1748908450877,0.31852139,105870.0,105860.0,1.33393923]
[1748908451083,0.37992139,105870.0,105860.0,1.52277343]
[1748908451283,0.2502164,105870.0,105860.0,0.41697923]
[1748908451586,0.39890466,105870.0,105860.0,0.97314827]
[1748908451785,0.39890466,105870.0,105860.0,0.97714827]
[1748908451980,0.39890466,105870.0,105860.0,0.4858]
[1748908452187,0.39890466,105870.0,105860.0,0.93336]
[1748908452395,0.39890466,105870.0,105860.0,0.4858]
[1748908452690,0.39890466,105870.0,105860.0,0.93336]
[1748908454396,0.39890466,105870.0,105860.0,0.93036]
[1748908454888,0.74072139,105870.0,105860.0,0.93036]
[1748908456390,0.74072139,105870.0,105860.0,0.96266]
[1748908459491,0.74072139,105870.0,105860.0,0.96690954]
[1748908460693,0.37992139,105870.0,105860.0,0.96690954]
[1748908461284,0.37992139,105870.0,105860.0,0.51934954]
[1748908461491,0.74072139,105870.0,105860.0,0.96686954]
[1748908461691,0.37992139,105870.0,105860.0,0.96686954]
[1748908462791,0.74072139,105870.0,105860.0,0.96686954]
[1748908463092,0.77072139,105870.0,105860.0,0.96686954]
[1748908463690,0.2189164,105870.0,105860.0,1.51650374]
[1748908464096,0.2191164,105870.0,105860.0,1.51650374]
[1748908464495,0.2521164,105870.0,105860.0,1.51650374]
[1748908465000,0.1890164,105870.0,105860.0,1.51650374]
[1748908465201,0.1890164,105870.0,105860.0,1.66369397]
[1748908465202,0.1888164,105870.0,105860.0,1.66369397]
[1748908465399,0.1890164,105870.0,105860.0,1.66369397]
[1748908465600,0.1888164,105870.0,105860.0,1.70844083]
[1748908465902,0.1890164,105870.0,105860.0,1.75170667]
[1748908466095,0.1890164,105870.0,105860.0,1.73422143]
[1748908466290,0.0002,105870.0,105860.0,2.12342829]
[1748908466590,0.1888164,105870.0,105860.0,2.17703309]
[1748908466790,0.1890164,105870.0,105860.0,2.19434848]
[1748908467300,0.1890164,105870.0,105860.0,2.19434902]
[1748908467601,0.1890164,105870.0,105860.0,2.23767787]
[1748908468499,0.1890164,105870.0,105860.0,2.14960162]
[1748908469592,0.1890164,105870.0,105860.0,2.14965615]
[1748908469906,0.1890164,105870.0,105860.0,2.10236895]
[1748908470602,0.1890164,105870.0,105860.0,2.10232895]
[1748908470801,0.1890164,105870.0,105860.0,2.10236895]
[1748908473103,0.1890164,105870.0,105860.0,1.85232895]
[1748908474199,0.1890164,105870.0,105860.0,2.01462784]
[1748908474902,0.1890164,105870.0,105860.0,2.01461978]
[1748908475901,0.1890164,105870.0,105860.0,2.11038742]
[1748908476099,0.1890164,105870.0,105860.0,2.01461978]
[1748908477007,0.1890164,105870.0,105860.0,2.11038742]
[1748908477194,0.1888164,105870.0,105860.0,2.11038742]
[1748908477400,0.1890164,105870.0,105860.0,2.11038742]
[1748908477594,0.1890164,105870.0,105860.0,1.96982671]
[1748908479508,0.1890164,105870.0,105860.0,1.87536671]
[1748908483013,0.1890164,105870.0,105860.0,1.42800671]
[1748908483213,0.1890164,105870.0,105860.0,1.87524671]
[1748908483515,0.2508164,105870.0,105860.0,1.87524671]
[1748908484907,0.2508164,105870.0,105860.0,1.31936671]
[1748908485099,0.2508164,105870.0,105860.0,1.87500671]
[1748908486109,0.0318,105870.0,105860.0,1.87500671]
[1748908486319,0.0002,105870.0,105860.0,1.87500671]
[1748908486506,0.0002,105870.0,105860.0,2.07861004]
[1748908486810,0.1888164,105870.0,105860.0,2.07861004]
[1748908487116,0.1890164,105870.0,105860.0,2.07861004]
[1748908487315,0.1890164,105870.0,105860.0,2.22544569]
[1748908487815,0.1890164,105870.0,105860.0,2.22545831]
[1748908488114,0.1890164,105870.0,105860.0,2.10794793]
[1748908489813,0.2211164,105870.0,105860.0,1.53104294]
[1748908490113,0.2532164,105870.0,105860.0,2.10790793]
[1748908491110,0.2530164,105870.0,105860.0,2.10790793]
[1748908491415,0.2532164,105870.0,105860.0,2.10790793]
[1748908491717,0.0323,105870.0,105860.0,2.00011494]
[1748908491905,0.2211164,105870.0,105860.0,2.10805352]
[1748908492109,0.2209164,105870.0,105860.0,2.10805352]
[1748908492418,0.2211164,105870.0,105860.0,2.10807892]
[1748908492718,0.2512164,105870.0,105860.0,2.10807892]
[1748908495412,0.2512164,105870.0,105860.0,2.00011494]